bitfinex/quotes_ETHUSD_20250529
["timestamp","ask_amount","ask_price","bid_price","bid_amount"]
[1748484150027,0.8271,2711.4,2711.1,11.68845537]
[1748484150178,3.936,2711.5,2711.1,11.68845537]
[1748484150395,3.936,2711.5,2711.2,3.68831884]
[1748484150924,3.936,2711.5,2711.1,11.68848679]
[1748484151521,1.3024,2711.6,2711.2,3.68832413]
[1748484151724,3.936,2711.5,2711.3,3.68819803]
[1748484151891,3.936,2711.6,2711.3,3.68819803]
[1748484152234,3.936,2711.6,2711.1,2.00831241]
[1748484152235,0.8114,2712.0,2711.5,3.68788234]
[1748484152388,3.936,2711.9,2711.5,3.68788234]
[1748484152587,3.936,2711.9,2711.4,3.68806372]
[1748484152797,3.68747569,2711.9,2711.4,3.68806372]
[1748484152998,0.55,2711.7,2711.2,3.6883753]
[1748484153199,0.7912,2711.6,2711.2,3.6883753]
[1748484153641,0.7912,2711.6,2711.0,11.68858766]
[1748484153844,3.68804235,2711.5,2710.9,4.15935769]
[1748484154018,3.936,2711.4,2710.9,0.4706]
[1748484154601,3.936,2711.4,2711.1,8.0]
[1748484154817,3.936,2711.3,2711.1,3.6885213]
[1748484155015,3.936,2711.3,2711.2,3.68840365]
[1748484155461,3.936,2711.3,2711.1,11.68847183]
[1748484155624,3.936,2711.3,2711.2,3.68840365]
[1748484155826,3.936,2711.3,2711.2,11.68840365]
[1748484156035,3.936,2711.3,2711.2,8.0]
[1748484156326,3.936,2711.3,2711.2,11.68840365]
[1748484156540,3.936,2711.3,2711.2,13.22609765]
[1748484156722,0.7912,2711.6,2711.3,3.68823177]
[1748484156971,3.935,2711.5,2711.3,3.68823177]
[1748484157267,3.935,2711.5,2711.2,8.0]
[1748484157453,4.4890638,2711.4,2711.2,8.0]
[1748484157661,3.68826762,2711.3,2710.8,9.71]
[1748484157960,3.68826762,2711.3,2710.9,8.0]
[1748484158366,5.38640694,2711.4,2710.9,8.0]
[1748484158565,5.38640694,2711.4,2710.9,11.68880675]
[1748484158750,1.69820638,2711.4,2710.8,5.39893072]
[1748484158957,0.55,2711.1,2710.3,1.71]
[1748484159123,4.23882152,2710.9,2710.2,1.71]
[1748484159466,4.23882152,2710.9,2710.4,8.0]
[1748484159766,0.55,2710.9,2710.2,1.71]
[1748484159967,3.6891559,2710.7,2710.2,1.71]
[1748484160269,4.7591,2710.6,2710.2,1.71]
[1748484160483,3.68970032,2710.3,2710.1,0.05]
[1748484160692,8.41716459,2710.2,2710.1,0.05]
[1748484160902,4.7274,2710.2,2710.1,0.05]
[1748484161033,0.7924,2710.9,2710.1,3.73980528]
[1748484161372,0.7924,2710.9,2710.6,3.68911485]
[1748484161672,0.7924,2710.9,2710.6,8.0]
[1748484161873,0.7924,2710.9,2710.6,11.68917432]
[1748484162176,3.935,2711.0,2710.6,11.68917432]
[1748484162177,3.935,2711.0,2710.7,3.68906298]
[1748484162837,3.935,2711.0,2710.7,3.68903158]
[1748484163183,3.935,2711.0,2710.4,5.39948295]
[1748484163475,3.935,2711.0,2710.9,3.68881183]
[1748484163836,3.935,2711.0,2710.8,3.68892266]
[1748484164031,3.935,2711.0,2710.7,3.68901785]
[1748484164229,3.935,2711.0,2710.8,3.68891613]
[1748484164474,3.935,2711.0,2710.9,3.68881183]
[1748484164631,0.8195,2711.8,2711.2,3.68831681]
[1748484164831,3.935,2711.7,2711.2,3.68831681]
[1748484165279,3.935,2711.6,2711.3,3.68826286]
[1748484165661,0.55,2711.7,2711.2,3.68836008]
[1748484165865,0.55,2711.7,2711.3,3.68823197]
[1748484166029,1.63895366,2711.8,2710.8,2.1806]
[1748484166232,3.935,2711.7,2711.4,3.68812871]
[1748484166433,3.935,2711.7,2711.3,3.68820522]
[1748484166735,3.935,2711.7,2711.1,3.6885397]
[1748484166736,3.935,2711.7,2711.2,11.68833841]
[1748484166940,4.77821261,2711.6,2711.2,11.68833841]
[1748484167295,4.77821261,2711.6,2710.9,1.078]
[1748484167591,8.46607294,2711.6,2711.2,8.0]
[1748484167746,0.84660729,2711.5,2711.2,8.0]
[1748484167957,4.53464864,2711.5,2711.1,8.0]
[1748484168260,4.53464864,2711.5,2711.0,8.0]
[1748484168470,1.30007216,2711.4,2711.0,8.0]
[1748484168664,1.30007216,2711.4,2710.9,8.0]
[1748484168837,4.53467983,2711.5,2711.0,3.68863179]
[1748484169036,4.53465302,2711.5,2710.9,8.0]
[1748484169250,0.84660729,2711.5,2711.0,8.0]
[1748484169566,0.84660729,2711.5,2710.9,8.0]
[1748484169876,0.7546,2711.4,2710.9,8.0]
[1748484170080,4.44280648,2711.4,2710.8,9.71]
[1748484170248,4.23833498,2711.3,2710.8,1.71]
[1748484170453,0.7546,2711.0,2710.5,3.68925686]
[1748484170753,0.7546,2711.0,2710.6,3.68918359]
[1748484171486,0.7546,2711.0,2710.7,1.36970447]
[1748484171851,0.7546,2711.0,2710.6,3.68918359]
[1748484172186,0.7546,2711.0,2710.6,3.68921823]
[1748484173157,3.934,2710.9,2710.7,3.68900927]
[1748484173363,3.934,2710.9,2710.7,3.68896868]
[1748484174490,3.934,2710.9,2710.6,3.68920319]
[1748484174789,3.934,2710.9,2710.5,3.68929211]
[1748484175691,4.77171468,2710.9,2710.5,3.68929211]
[1748484176477,4.77171468,2710.9,2710.3,13.87022524]
[1748484176478,3.68903524,2710.8,2710.3,2.1806]
[1748484176673,0.55,2710.8,2710.3,1.71]
[1748484176986,3.689091,2710.7,2710.3,1.71]
[1748484177550,3.6894594,2710.5,2710.1,0.05]
[1748484177851,4.38216594,2710.4,2710.1,0.05]
[1748484178057,3.933,2710.4,2710.1,0.05]
[1748484178351,7.62249857,2710.4,2710.1,0.05]
[1748484180350,3.933,2710.4,2710.1,0.05]
[1748484182287,7.62254898,2710.4,2710.1,0.05]
[1748484183485,3.933,2710.4,2710.1,0.05]
[1748484183693,7.62258423,2710.4,2710.1,0.05]
[1748484183968,4.46306459,2710.2,2710.1,0.05]
[1748484184190,0.7733,2710.2,2710.1,0.05]
[1748484185267,4.7063,2710.2,2710.1,0.05]
[1748484186576,0.8271,2710.5,2710.1,3.73983253]
[1748484186780,3.933,2710.3,2710.1,3.73983253]
[1748484186992,3.68896205,2710.8,2710.1,3.73983253]
[1748484186993,0.8271,2711.1,2710.4,3.68949232]
[1748484187320,0.8271,2711.1,2710.2,0.37398325]
[1748484187514,0.8271,2711.1,2710.6,3.6891288]
[1748484187718,4.7591,2711.1,2710.7,3.68906656]
[1748484188016,4.7591,2711.1,2710.6,3.68916791]
[1748484188219,4.7591,2711.1,2710.7,3.68899411]
[1748484188630,8.44764864,2711.1,2710.6,3.6891521]
[1748484188916,4.7591,2711.1,2710.6,3.68922009]
[1748484189514,8.44772935,2711.1,2710.6,3.6892057]
[1748484189720,9.71630764,2711.1,2710.5,4.15987233]
[1748484190539,9.71630764,2711.1,2710.6,3.68921684]
[1748484190738,9.71630764,2711.1,2710.5,4.15990487]
[1748484191038,9.71630764,2711.1,2710.6,3.68919646]
[1748484191338,6.02770392,2711.1,2710.5,4.15992434]
[1748484191509,3.68887974,2710.9,2710.4,8.0]
[1748484192039,4.66036359,2711.0,2710.5,3.68927998]
[1748484192409,4.66036359,2711.0,2710.4,11.68943732]
[1748484192614,3.6888173,2710.9,2710.4,11.68943732]
[1748484193440,4.66035855,2711.0,2710.5,3.68932514]
[1748484193653,3.688999,2710.8,2710.2,3.68976459]
[1748484193856,3.688999,2710.8,2710.4,8.0]
[1748484194148,3.931,2710.7,2710.4,8.0]
[1748484194306,3.931,2710.7,2710.3,3.68962099]
[1748484194511,3.931,2710.6,2710.2,8.0]
[1748484194737,3.931,2710.6,2710.4,3.68942417]
[1748484195333,3.931,2710.6,2710.3,3.68961876]
[1748484196343,3.931,2710.6,2710.4,3.68948726]
[1748484199457,3.931,2710.6,2710.2,3.68973234]
[1748484199458,3.931,2710.6,2710.5,3.6893562]
[1748484199650,3.931,2710.6,2710.4,3.6894227]
[1748484200546,3.931,2710.6,2710.4,3.68942517]
[1748484200751,3.931,2710.6,2710.5,3.6893562]
[1748484202754,3.93,2710.7,2710.4,3.68943799]
[1748484203209,3.93,2710.7,2710.5,3.68933776]
[1748484203410,3.93,2710.7,2710.4,3.68942565]
[1748484204625,3.93,2710.7,2710.4,8.0]
[1748484204933,3.93,2710.7,2710.4,3.68948641]
[1748484206923,0.7839,2710.6,2710.2,8.0]
[1748484207126,0.7839,2710.6,2710.2,11.68963914]
[1748484207364,3.68947849,2710.5,2710.1,0.05]
[1748484207552,4.23945474,2710.5,2710.1,0.05]
[1748484207728,0.763,2710.4,2710.1,0.05]
[1748484207922,3.929,2710.3,2710.1,8.05]
[1748484208963,3.929,2710.3,2710.1,0.05]
[1748484209294,5.00276459,2710.2,2710.1,0.05]
[1748484210427,0.763,2709.3,2709.1,0.05]
[1748484210630,4.4532,2710.3,2709.3,11.69096285]
[1748484210631,0.763,2709.5,2709.3,11.69096285]
[1748484210860,3.929,2709.4,2709.3,3.69099029]
[1748484212137,0.8106,2709.7,2709.3,3.69099029]
[1748484212340,3.929,2709.6,2709.5,3.69060101]
[1748484212582,0.55,2710.0,2709.5,3.69060101]
[1748484212583,3.929,2709.8,2709.5,3.69060101]
[1748484213379,3.929,2709.8,2709.3,8.0]
[1748484213677,0.55,2710.0,2709.5,11.6906597]
[1748484213855,3.928,2709.9,2709.5,8.0]
[1748484214040,3.69069385,2709.6,2709.1,0.05]
[1748484214240,3.928,2709.5,2709.1,0.05]
[1748484214480,3.928,2709.5,2709.1,3.74119308]
[1748484214481,0.7562,2709.4,2709.1,3.74119308]
[1748484214779,0.7562,2709.4,2709.2,8.0]
[1748484215157,0.55,2709.3,2709.1,8.05]
[1748484215358,1.3207,2709.2,2709.1,0.05]
[1748484215678,0.7707,2709.2,2709.1,0.05]
[1748484216294,0.7707,2709.2,2709.1,3.74126278]
[1748484216444,1.3267,2709.4,2709.1,0.05]
[1748484217684,5.01756686,2709.4,2709.1,0.05]
[1748484217987,1.26362955,2709.3,2709.1,0.05]
[1748484218142,4.24112653,2709.2,2709.1,0.05]
[1748484218344,5.07102653,2709.2,2709.1,0.05]
[1748484224438,8.99902653,2709.2,2709.1,0.05]
[1748484225697,0.55,2709.2,2709.1,0.05]
[1748484225862,4.478,2709.2,2709.1,0.05]
[1748484227795,0.55,2709.3,2709.1,0.05]
[1748484228095,4.477,2709.2,2709.1,0.05]
[1748484229267,0.55,2709.2,2709.1,0.05]
[1748484229456,4.477,2709.2,2709.1,0.05]
[1748484231261,0.55,2709.3,2709.1,0.05]
[1748484231488,3.927,2709.2,2709.1,3.74124295]
[1748484231686,3.927,2709.2,2709.1,0.05]
[1748484232818,0.55,2709.5,2709.1,0.05]
[1748484233022,3.927,2709.4,2709.1,0.05]
[1748484233685,3.926,2709.3,2709.1,0.05]
[1748484238291,7.61699899,2709.3,2709.1,0.05]
[1748484238497,3.926,2709.3,2709.1,0.05]
[1748484239216,7.61699557,2709.3,2709.1,0.05]
[1748484239379,3.926,2709.3,2709.1,0.05]
[1748484240976,7.61699952,2709.3,2709.1,0.05]
[1748484241574,3.69112653,2709.2,2709.1,0.05]
[1748484241779,5.11177277,2709.3,2709.1,0.05]
[1748484241979,7.61705005,2709.3,2709.1,0.05]
[1748484242822,7.61705005,2709.3,2708.8,3.18652205]
[1748484243196,7.6170566,2709.3,2708.8,3.69164885]
[1748484244319,4.24075823,2709.5,2708.8,3.69164885]
[1748484244519,3.924,2709.4,2708.9,3.6915353]
[1748484245016,7.61485421,2709.4,2708.9,3.6915353]
[1748484245396,7.61485421,2709.4,2708.8,3.69159927]
[1748484245595,7.61485421,2709.4,2708.7,4.21237835]
[1748484246124,7.61485421,2709.4,2708.8,3.69167158]
[1748484246125,3.6909929,2709.3,2708.8,3.69167158]
[1748484246295,0.8112,2709.1,2708.7,3.69173512]
[1748484246694,0.8091,2709.3,2708.7,3.69173512]
[1748484246899,0.8091,2709.3,2708.9,3.69152354]
[1748484247125,4.50009394,2709.3,2708.8,3.69163004]
[1748484248185,0.8091,2709.3,2708.6,8.5206]
[1748484248409,0.8091,2709.3,2708.6,0.5206]
[1748484248599,3.69175129,2708.8,2708.5,1.71]
[1748484248801,7.61473862,2708.8,2708.3,3.69234396]
[1748484248993,7.61473862,2708.8,2708.2,0.5206]
[1748484248994,3.923,2708.8,2708.2,0.5206]
[1748484249196,1.3054,2708.7,2708.1,0.71666667]
[1748484249396,4.44734048,2708.7,2708.1,0.71666667]
[1748484249625,3.69196307,2708.6,2708.1,0.71666667]
[1748484250325,3.69196307,2708.6,2708.1,4.40927707]
[1748484250487,0.7554,2708.7,2708.3,3.69227312]
[1748484250688,3.923,2708.6,2708.3,3.69227312]
[1748484251516,3.923,2708.6,2708.2,12.24035247]
[1748484252516,7.61494418,2708.6,2708.2,8.0]
[1748484253531,3.923,2708.6,2708.1,0.71666667]
[1748484253735,3.923,2708.6,2708.2,3.69239308]
[1748484254319,7.6150317,2708.6,2708.1,0.71666667]
[1748484254536,4.45308947,2708.2,2708.1,0.71666667]
[1748484254735,8.92608947,2708.2,2708.1,0.71666667]
[1748484255226,5.2336,2708.2,2708.1,0.71666667]
[1748484255560,0.55,2708.5,2708.1,0.71666667]
[1748484255765,1.20622609,2708.6,2708.1,0.71666667]
[1748484255766,3.923,2708.2,2708.1,0.71666667]
[1748484257251,3.923,2708.2,2708.1,4.4092631]
[1748484257446,3.923,2708.2,2708.1,4.2631833]
[1748484257826,0.7999,2708.8,2708.1,0.5706]
[1748484258026,7.61380787,2708.7,2708.1,0.5706]
[1748484258221,7.61380787,2708.7,2708.2,3.69248093]
[1748484258425,1.62287079,2708.6,2708.1,0.05]
[1748484258616,4.24215144,2708.5,2708.1,0.05]
[1748484259014,0.55,2708.3,2708.1,0.05]
[1748484259251,4.13968947,2708.2,2708.1,0.05]
[1748484259413,0.4472,2708.2,2708.1,0.05]
[1748484259756,0.55,2708.3,2708.1,0.05]
[1748484260796,4.7447,2708.2,2708.1,0.05]
[1748484261769,3.922,2708.2,2708.1,0.05]
[1748484264073,0.55,2708.4,2708.2,3.69242005]
[1748484264376,3.922,2708.3,2708.1,0.05]
[1748484266414,0.55,2708.4,2708.1,0.05]
[1748484266616,3.921,2708.3,2708.1,0.05]
[1748484268353,0.8101,2708.7,2708.1,0.5706]
[1748484268659,4.471,2708.6,2708.2,11.69242763]
[1748484269320,0.55,2708.6,2708.2,11.69242763]
[1748484269522,3.921,2708.5,2708.2,11.69242763]
[1748484270150,3.921,2708.5,2708.3,3.69231265]
[1748484270521,0.55,2708.6,2708.3,8.0]
[1748484270844,3.92,2708.5,2708.3,8.0]
[1748484273645,3.92,2708.5,2708.1,4.26316688]
[1748484273832,3.92,2708.5,2708.2,8.0]
[1748484274535,3.92,2708.5,2708.2,11.6924878]
[1748484274736,3.92,2708.5,2708.3,8.0]
[1748484277357,3.92,2708.5,2708.2,3.69243392]
[1748484277546,3.92,2708.5,2708.3,8.0]
[1748484278140,3.92,2708.5,2708.2,3.69243392]
[1748484278665,0.7869,2709.2,2708.7,3.691694]
[1748484278824,7.61029009,2709.1,2708.5,3.69208048]
[1748484279225,7.61029009,2709.1,2708.4,3.6922168]
[1748484279226,0.55,2709.0,2708.7,8.0]
[1748484279561,3.69154484,2708.9,2708.4,3.69214166]
[1748484279727,3.918,2708.8,2708.4,3.69214166]
[1748484280470,7.6097023,2708.8,2708.3,11.69228213]
[1748484280651,3.918,2708.8,2708.4,3.69212778]
[1748484281005,0.55,2708.6,2708.2,13.40241764]
[1748484281139,3.918,2708.5,2708.2,11.69241764]
[1748484281537,3.918,2708.5,2708.1,0.05]
[1748484281740,7.61016295,2708.5,2708.1,0.05]
[1748484282051,0.7635,2708.3,2708.1,0.05]
[1748484282250,3.918,2708.2,2708.1,0.05]
[1748484282454,3.918,2708.2,2708.1,8.05]
[1748484283839,3.918,2708.2,2708.1,0.05]
[1748484286976,9.41348947,2708.2,2708.1,0.05]
[1748484288183,3.69221196,2708.5,2708.1,0.05]
[1748484288349,4.467,2708.4,2708.1,0.05]
[1748484288680,8.15930157,2708.4,2708.1,0.05]
[1748484289172,0.55,2708.4,2708.1,0.05]
[1748484289335,3.916,2708.3,2708.1,0.05]
[1748484290459,3.916,2708.2,2708.1,0.05]
[1748484291005,3.69135017,2709.1,2708.1,0.05]
[1748484291006,3.916,2708.5,2708.3,3.69228316]
[1748484291275,3.916,2708.5,2708.1,8.5706]
[1748484291574,7.60811287,2708.5,2708.1,8.05]
[1748484291963,3.916,2708.5,2708.1,8.05]
[1748484292792,3.916,2708.5,2708.1,11.74262036]
[1748484292956,3.916,2708.4,2708.3,3.69225312]
[1748484293160,3.916,2708.4,2708.2,4.21308451]
[1748484294280,3.916,2708.4,2708.2,0.5206]
[1748484294657,3.916,2708.4,2708.1,3.74255465]
[1748484295372,3.916,2708.4,2708.1,1.117]
[1748484297552,0.8112,2708.2,2708.1,0.05]
[1748484297757,1.3612,2708.2,2708.1,0.05]
[1748484298385,5.05368947,2708.2,2708.1,0.05]
[1748484298701,1.3612,2708.2,2708.1,0.05]
[1748484300144,0.55,2708.2,2708.1,0.05]
[1748484300294,3.916,2708.4,2708.1,0.05]
[1748484300497,0.55,2708.3,2708.1,0.05]
[1748484300751,3.914,2708.3,2708.1,3.74258243]
[1748484301064,3.914,2708.3,2708.1,0.05]
[1748484301935,7.60639817,2708.3,2708.1,0.05]
[1748484302623,3.914,2708.3,2708.1,0.05]
[1748484303027,7.60637976,2708.3,2708.1,0.05]
[1748484303724,3.914,2708.3,2708.1,0.05]
[1748484303924,7.60639547,2708.3,2708.1,0.05]
[1748484304811,3.913,2708.4,2708.1,0.05]
[1748484305416,3.69248947,2708.2,2708.1,0.05]
[1748484305617,1.3721,2708.2,2708.1,0.05]
[1748484306355,0.55,2708.2,2708.1,0.05]
[1748484306955,4.24248947,2708.2,2708.1,0.05]
[1748484308761,5.04998947,2708.2,2708.1,0.05]
[1748484308961,6.39707418,2708.2,2708.1,0.05]
[1748484311019,6.93243308,2708.2,2708.1,0.05]
[1748484311440,6.93243066,2708.2,2708.1,0.05]
[1748484311642,10.84443066,2708.2,2708.1,0.05]
[1748484311843,6.58881966,2708.2,2708.1,0.05]
[1748484312077,10.50081966,2708.2,2708.1,0.05]
[1748484313471,6.58881966,2708.2,2708.1,0.05]
[1748484313682,10.50081966,2708.2,2708.1,0.05]
[1748484316885,10.49981966,2708.2,2708.1,0.05]
[1748484318996,6.58881966,2708.2,2708.1,0.05]
[1748484319196,10.49981966,2708.2,2708.1,0.05]
[1748484324302,10.49881966,2708.2,2708.1,0.05]
[1748484324836,3.69183708,2708.7,2708.1,0.05]
[1748484324837,0.8275,2708.8,2708.1,0.05]
[1748484325128,3.69248947,2708.2,2708.1,0.05]
[1748484325291,7.60248947,2708.2,2708.1,0.05]
[1748484325647,9.36472521,2708.2,2708.1,0.05]
[1748484325782,10.19222521,2708.2,2708.1,0.05]
[1748484327922,10.19122521,2708.2,2708.1,0.05]
[1748484329947,6.28222521,2708.2,2708.1,0.05]
[1748484330227,3.69248947,2708.2,2708.1,0.05]
[1748484330428,7.60148947,2708.2,2708.1,0.05]
[1748484330726,8.15148947,2708.2,2708.1,0.05]
[1748484335209,8.93598947,2708.2,2708.1,0.05]
[1748484339972,0.55,2707.7,2707.2,6.74531177]
[1748484340158,3.907,2707.7,2707.2,11.59408574]
[1748484340347,3.6934082,2707.6,2707.2,7.90023669]
[1748484340543,7.60021209,2707.7,2707.2,4.84876766]
[1748484340745,3.907,2707.7,2707.1,0.05]
[1748484340956,0.55,2707.6,2707.1,0.05]
[1748484341157,4.24371607,2707.4,2707.1,0.05]
[1748484341582,3.69377771,2707.3,2707.1,0.05]
[1748484341780,7.60085342,2707.2,2707.1,0.05]
[1748484342011,3.907,2707.2,2707.1,0.05]
[1748484347103,8.96592719,2707.2,2707.1,0.05]
[1748484350676,9.98333852,2707.2,2707.1,0.05]
[1748484350804,3.69521838,2706.2,2706.1,0.05]
[1748484351001,8.15021838,2706.2,2706.1,0.05]
[1748484351969,9.41730627,2706.2,2706.1,0.05]
[1748484353949,8.15021838,2706.2,2706.1,0.05]
[1748484354464,4.455,2706.2,2706.1,0.05]
[1748484355070,0.55,2706.2,2706.1,0.05]
[1748484355252,4.455,2706.2,2706.1,0.05]
[1748484355656,0.55,2706.2,2706.1,3.74535493]
[1748484355826,3.905,2706.2,2706.1,3.74535493]
[1748484356420,3.905,2706.3,2706.1,0.05]
[1748484357327,3.69483733,2706.5,2706.1,0.05]
[1748484357478,0.55,2706.6,2706.1,0.05]
[1748484357479,3.905,2706.4,2706.1,0.05]
[1748484357673,3.905,2706.4,2706.1,3.74528519]
[1748484358071,3.905,2706.4,2706.1,0.05]
[1748484358629,4.24521838,2706.2,2706.1,0.05]
[1748484359925,0.55,2706.2,2706.1,0.05]
[1748484360281,4.24521838,2706.2,2706.1,0.05]
[1748484360828,5.02001838,2706.2,2706.1,0.05]
[1748484365387,5.02001838,2706.2,2705.6,0.66666667]
[1748484365388,5.02650124,2705.7,2705.6,0.66666667]
[1748484365587,8.93150124,2705.7,2705.6,0.66666667]
[1748484366227,5.02650124,2705.7,2705.6,0.66666667]
[1748484366392,8.93050124,2705.7,2705.6,0.66666667]
[1748484368828,0.55,2705.2,2705.1,0.15]
[1748484369137,1.64731104,2706.1,2705.1,3.8466691]
[1748484369433,0.55,2705.3,2705.1,0.15]
[1748484370134,0.55,2705.4,2705.1,0.15]
[1748484370640,0.55,2705.4,2705.2,3.69651272]
[1748484371130,0.55,2705.4,2705.3,3.69644771]
[1748484371330,0.55,2705.4,2705.2,3.69650993]
[1748484371835,0.55,2705.4,2705.1,0.15]
[1748484371836,0.55,2705.4,2705.1,8.15]
[1748484372052,4.24658435,2705.2,2705.1,0.05]
[1748484372612,0.55,2705.2,2705.1,0.05]
[1748484372790,3.69653251,2705.3,2705.1,0.05]
[1748484372791,3.69647375,2705.3,2705.1,0.05]
[1748484373003,4.454,2705.2,2705.1,0.05]
[1748484373208,3.904,2705.2,2705.1,0.05]
[1748484373409,3.904,2705.2,2705.1,0.15]
[1748484376636,7.60058435,2705.2,2705.1,0.15]
[1748484376968,3.904,2705.2,2705.1,0.15]
[1748484379046,8.15058435,2705.2,2705.1,0.05]
[1748484380424,4.454,2705.2,2705.1,0.05]
[1748484380637,4.453,2705.2,2705.1,0.05]
[1748484381865,4.453,2705.2,2704.7,3.69720354]
[1748484381866,0.55,2705.1,2704.7,3.69720354]
[1748484382041,0.55,2705.1,2704.7,4.4366747]
[1748484382246,3.903,2705.1,2704.7,0.73947116]
[1748484382442,3.903,2705.1,2704.7,3.69721221]
[1748484383069,3.903,2705.1,2704.8,3.69711679]
[1748484383598,3.903,2705.1,2704.7,3.69726771]
[1748484383748,3.903,2705.1,2704.4,1.057]
[1748484384083,0.7773,2705.7,2704.4,9.057]
[1748484384284,0.55,2705.4,2705.0,3.69677201]
[1748484385477,0.55,2705.6,2705.1,3.69658845]
[1748484385687,0.55,2705.4,2705.2,3.69657723]
[1748484385982,0.55,2705.5,2705.1,4.43598778]
[1748484386188,4.452,2705.5,2705.1,4.43598778]
[1748484386361,4.452,2705.5,2705.0,3.69675594]
[1748484386742,4.452,2705.5,2705.1,3.69671745]
[1748484387584,8.14822791,2705.5,2705.0,3.6968551]
[1748484387882,4.452,2705.5,2705.0,0.84508462]
[1748484388083,4.452,2705.5,2704.8,4.7541295]
[1748484388084,3.69651377,2705.3,2704.8,4.7541295]
[1748484388585,3.69651377,2705.3,2704.8,3.69711737]
[1748484389047,0.55,2705.3,2704.9,3.69691981]
[1748484391289,0.55,2705.4,2705.1,3.69669837]
[1748484391529,0.34256576,2705.8,2705.2,3.69658435]
[1748484391530,3.69585826,2705.8,2705.2,3.69658435]
[1748484391649,3.901,2705.6,2705.2,3.69658435]
[1748484391847,3.901,2705.6,2705.3,3.69644492]
[1748484392051,0.8143,2706.1,2705.3,3.69644771]
[1748484392262,0.8143,2706.1,2705.6,3.69591056]
[1748484392475,3.901,2706.0,2705.6,4.06550162]
[1748484392650,3.901,2706.0,2705.7,3.69589359]
[1748484392867,3.69666365,2705.2,2704.9,1.057]
[1748484393073,3.901,2705.3,2704.9,1.057]
[1748484393775,3.901,2705.3,2704.9,4.75399121]
[1748484394406,3.901,2705.3,2704.9,1.057]
[1748484394607,3.901,2705.3,2704.9,4.75395637]
[1748484394815,3.901,2705.3,2705.0,3.69676241]
[1748484395008,3.901,2705.3,2704.9,4.75394055]
[1748484395213,3.901,2705.3,2705.0,3.69684174]
[1748484395533,3.901,2705.3,2705.1,1.057]
[1748484396175,0.55,2705.5,2705.1,5.22904773]
[1748484396383,4.45,2705.5,2705.1,1.53237922]
[1748484396673,8.14618217,2705.5,2705.0,1.057]
[1748484397273,8.14618217,2705.5,2705.1,1.057]
[1748484397896,4.45,2705.5,2705.1,1.057]
[1748484398111,4.45,2705.5,2705.2,1.057]
[1748484401406,4.45,2705.5,2705.1,3.69668431]
[1748484401633,4.45,2705.5,2705.3,1.054]
[1748484402335,3.899,2705.4,2705.3,1.054]
[1748484405149,7.59531706,2705.4,2705.2,1.054]
[1748484405319,3.899,2705.4,2705.2,1.054]
[1748484405906,3.899,2705.4,2705.0,3.69685388]
[1748484406135,3.899,2705.4,2705.2,1.054]
[1748484409138,3.899,2705.4,2705.0,3.69674437]
[1748484409346,3.899,2705.4,2705.1,1.054]
[1748484410143,3.899,2705.4,2705.1,4.75068113]
[1748484410364,3.899,2705.4,2705.1,1.054]
[1748484410569,0.8074,2705.9,2705.1,4.17175272]
[1748484410773,4.448,2705.8,2705.2,4.75050655]
[1748484410944,0.55,2705.8,2705.3,3.69642481]
[1748484411145,3.898,2705.7,2705.2,4.75051432]
[1748484411458,3.898,2705.7,2705.2,1.054]
[1748484411459,3.69612426,2705.6,2705.2,1.054]
[1748484411667,3.898,2705.7,2705.2,4.75057843]
[1748484411668,7.593951,2705.7,2705.2,4.75057843]
[1748484412075,7.59391927,2705.7,2705.2,4.75052917]
[1748484412248,7.59391927,2705.7,2705.2,5.22558701]
[1748484413086,7.59391927,2705.7,2705.3,1.054]
[1748484413249,3.898,2705.7,2705.3,4.75043974]
[1748484413455,3.898,2705.7,2705.3,1.054]
[1748484413851,3.69603784,2705.6,2705.4,1.054]
[1748484414077,7.59395217,2705.7,2705.4,1.054]
[1748484414974,4.24604979,2705.6,2705.5,1.054]
[1748484415178,0.55,2705.6,2705.5,1.054]
[1748484415484,4.24603784,2705.6,2705.5,1.054]
[1748484416493,0.55,2705.6,2705.5,1.054]
[1748484416949,0.55,2705.7,2705.5,1.054]
[1748484418098,4.24590379,2705.7,2705.5,1.054]
[1748484418265,3.69603784,2705.6,2705.5,1.054]
[1748484418471,4.24597019,2705.7,2705.5,1.054]
[1748484419175,4.24597019,2705.7,2705.2,3.69657975]
[1748484419380,4.24597019,2705.7,2705.3,1.054]
[1748484420549,4.24597019,2705.7,2705.4,1.054]
[1748484421392,4.23303262,2705.7,2705.4,1.054]
[1748484421891,3.69610227,2705.6,2705.1,3.696592]
[1748484422098,3.69610227,2705.6,2705.2,1.054]
[1748484422410,4.23303153,2705.7,2705.2,1.054]
[1748484422977,4.23303153,2705.7,2705.2,4.75057811]
[1748484423392,0.53706243,2705.7,2705.3,3.69644575]
[1748484423594,3.895,2705.7,2705.2,4.75052471]
[1748484423888,3.69621316,2705.5,2705.2,0.91865876]
[1748484424113,7.59091007,2705.7,2705.1,4.43596294]
[1748484424285,7.59091007,2705.7,2705.3,1.054]
[1748484424944,7.59091007,2705.7,2705.4,1.054]
[1748484425240,3.895,2705.7,2705.4,1.054]
[1748484425457,7.59093434,2705.7,2705.5,1.054]
[1748484425891,3.895,2705.7,2705.5,1.054]